[Event "Late-Titled-Tuesday-Blitz-September-19-2023"]
[Site "Chess.com"]
[Date "2023.09.19"]
[Round "1"]
[White "Baronessa08"]
[Black "Mihajlovskij"]
[Result "1-0"]
[WhiteElo "2554"]
[BlackElo "2248"]
[TimeControl "180+1"]
[EndTime "14:07:42 PDT"]
[Termination "Baronessa08 won on time"]

1. Nf3 {[%clk 0:02:57.1]} 1... Nf6 {[%clk 0:02:43.7]} 2. b3 {[%clk 0:02:55.4]}
2... g6 {[%clk 0:02:39.5]} 3. Bb2 {[%clk 0:02:55.3]} 3... Bg7 {[%clk 0:02:40.4]}
4. c4 {[%clk 0:02:54.6]} 4... O-O {[%clk 0:02:40.6]} 5. g3 {[%clk 0:02:52.7]}
5... b6 {[%clk 0:02:39.9]} 6. Bg2 {[%clk 0:02:52.1]} 6... Bb7 {[%clk 0:02:40.6]}
7. O-O {[%clk 0:02:51.5]} 7... d6 {[%clk 0:02:37.8]} 8. Nc3 {[%clk 0:02:49.6]}
8... Nbd7 {[%clk 0:02:37.7]} 9. Qc2 {[%clk 0:02:38.1]} 9... e6 {[%clk
0:02:37.6]} 10. d4 {[%clk 0:02:34.7]} 10... Qe7 {[%clk 0:02:36.4]} 11. Rad1
{[%clk 0:02:33.7]} 11... a6 {[%clk 0:02:35]} 12. e4 {[%clk 0:02:24.3]} 12... e5
{[%clk 0:02:30.8]} 13. dxe5 {[%clk 0:02:19.3]} 13... Nxe5 {[%clk 0:02:28.5]} 14.
Nxe5 {[%clk 0:02:07.8]} 14... dxe5 {[%clk 0:02:29.4]} 15. Nd5 {[%clk 0:02:07.4]}
15... Nxd5 {[%clk 0:02:23.1]} 16. exd5 {[%clk 0:02:06.8]} 16... f5 {[%clk
0:02:19.9]} 17. Rfe1 {[%clk 0:02:00.6]} 17... Rad8 {[%clk 0:02:12.2]} 18. f3
{[%clk 0:01:27.6]} 18... Rfe8 {[%clk 0:02:09]} 19. Re2 {[%clk 0:01:23.1]} 19...
c6 {[%clk 0:02:04.3]} 20. dxc6 {[%clk 0:01:08.4]} 20... Bxc6 {[%clk 0:02:05.2]}
21. Rde1 {[%clk 0:01:06]} 21... Qc5+ {[%clk 0:02:04]} 22. Kh1 {[%clk 0:01:06.3]}
22... Re7 {[%clk 0:01:54.2]} 23. a3 {[%clk 0:00:52.8]} 23... a5 {[%clk
0:01:54.3]} 24. g4 {[%clk 0:00:47.2]} 24... fxg4 {[%clk 0:01:50.3]} 25. fxg4
{[%clk 0:00:46.9]} 25... Bxg2+ {[%clk 0:01:51]} 26. Kxg2 {[%clk 0:00:43.3]}
26... Red7 {[%clk 0:01:26.4]} 27. Qe4 {[%clk 0:00:35]} 27... Rd2 {[%clk
0:01:12.9]} 28. Rxd2 {[%clk 0:00:16.1]} 28... Rxd2+ {[%clk 0:01:12.4]} 29. Re2
{[%clk 0:00:17]} 29... Rd1 {[%clk 0:01:12.9]} 30. Bxe5 {[%clk 0:00:09.7]} 30...
Qg1+ {[%clk 0:00:47.7]} 31. Kh3 {[%clk 0:00:09.5]} 31... Qf1+ {[%clk 0:00:44.8]}
32. Kh4 {[%clk 0:00:08.4]} 32... Bf8 {[%clk 0:00:33.2]} 33. Bg3 {[%clk
0:00:04.9]} 33... g5+ {[%clk 0:00:10.1]} 34. Kxg5 {[%clk 0:00:04.8]} 34... h6+
{[%clk 0:00:02.2]} 35. Kh5 {[%clk 0:00:04.7]} 35... Qf7+ {[%clk 0:00:02.9]} 36.
Qg6+ {[%clk 0:00:05.1]} 36... Qxg6+ {[%clk 0:00:03.5]} 37. Kxg6 {[%clk 0:00:06]}
37... Rd3 {[%clk 0:00:04]} 38. Kf5 {[%clk 0:00:04.9]} 38... Rxb3 {[%clk
0:00:03.1]} 39. a4 {[%clk 0:00:05.3]} 39... Rb4 {[%clk 0:00:02.8]} 40. Re6
{[%clk 0:00:04.9]} 40... Bc5 {[%clk 0:00:01.6]} 41. Re8+ {[%clk 0:00:04.9]}
41... Kf7 {[%clk 0:00:01.6]} 42. Rh8 {[%clk 0:00:05.1]} 1-0

[Event "Late-Titled-Tuesday-Blitz-September-19-2023"]
[Site "Chess.com"]
[Date "2023.09.19"]
[Round "1"]
[White "zsoltkorpics"]
[Black "lefonghua"]
[Result "0-1"]
[WhiteElo "2362"]
[BlackElo "2644"]
[TimeControl "180+1"]
[EndTime "14:07:46 PDT"]
[Termination "lefonghua won on time"]

1. e4 {[%clk 0:03:00.9]} 1... c5 {[%clk 0:02:59.5]} 2. Nf3 {[%clk 0:03:00.6]}
2... g6 {[%clk 0:02:59.1]} 3. d4 {[%clk 0:03:00.2]} 3... cxd4 {[%clk 0:03:00]}
4. Qxd4 {[%clk 0:03:00.2]} 4... Nf6 {[%clk 0:02:59.6]} 5. Bb5 {[%clk 0:03:00.1]}
5... a6 {[%clk 0:02:58.3]} 6. e5 {[%clk 0:02:59.9]} 6... axb5 {[%clk 0:02:58.3]}
7. exf6 {[%clk 0:03:00.1]} 7... Nc6 {[%clk 0:02:58.7]} 8. Qd3 {[%clk 0:02:59.5]}
8... e6 {[%clk 0:02:50.2]} 9. Nc3 {[%clk 0:02:49.5]} 9... Bb4 {[%clk 0:02:40.1]}
10. Bd2 {[%clk 0:02:44.9]} 10... Qxf6 {[%clk 0:02:36.3]} 11. Nxb5 {[%clk
0:02:42.2]} 11... Bxd2+ {[%clk 0:02:33.6]} 12. Nxd2 {[%clk 0:02:36.5]} 12... O-O
{[%clk 0:02:32.1]} 13. c3 {[%clk 0:02:16.1]} 13... d5 {[%clk 0:02:28.5]} 14. O-O
{[%clk 0:02:08.9]} 14... Bd7 {[%clk 0:02:22]} 15. Nf3 {[%clk 0:02:07.8]} 15...
Ne5 {[%clk 0:02:15.9]} 16. Nxe5 {[%clk 0:02:05.1]} 16... Qxe5 {[%clk 0:02:16.8]}
17. Nd4 {[%clk 0:02:01.6]} 17... Qc7 {[%clk 0:02:13.1]} 18. Nf3 {[%clk
0:01:57.1]} 18... Qb6 {[%clk 0:02:11]} 19. Qd2 {[%clk 0:01:53.9]} 19... f6
{[%clk 0:02:06.7]} 20. Rfe1 {[%clk 0:01:51.5]} 20... Rfe8 {[%clk 0:02:02.9]} 21.
Qf4 {[%clk 0:01:46.2]} 21... e5 {[%clk 0:02:01.2]} 22. Qd2 {[%clk 0:01:46]}
22... Be6 {[%clk 0:01:58.7]} 23. a3 {[%clk 0:01:42.6]} 23... Kg7 {[%clk
0:01:58.7]} 24. h4 {[%clk 0:01:40.5]} 24... h5 {[%clk 0:01:58]} 25. b4 {[%clk
0:01:30.9]} 25... Rac8 {[%clk 0:01:55.8]} 26. a4 {[%clk 0:01:27]} 26... Rc4
{[%clk 0:01:50.4]} 27. a5 {[%clk 0:01:14]} 27... Qc7 {[%clk 0:01:50.4]} 28. Re3
{[%clk 0:01:06.9]} 28... Rc8 {[%clk 0:01:48.5]} 29. Ra3 {[%clk 0:01:00.5]} 29...
Qc6 {[%clk 0:01:43]} 30. Qb2 {[%clk 0:00:57.8]} 30... Rg4 {[%clk 0:01:36.2]} 31.
b5 {[%clk 0:00:51.8]} 31... Qc5 {[%clk 0:01:29.1]} 32. a6 {[%clk 0:00:51.5]}
32... bxa6 {[%clk 0:01:28.3]} 33. bxa6 {[%clk 0:00:51.4]} 33... Rc7 {[%clk
0:01:26.2]} 34. Rb3 {[%clk 0:00:38.3]} 34... Bc8 {[%clk 0:01:13.7]} 35. Rb6
{[%clk 0:00:37.8]} 35... Ra4 {[%clk 0:01:05.4]} 36. Qb5 {[%clk 0:00:24.4]} 36...
Ra1+ {[%clk 0:00:53]} 37. Kh2 {[%clk 0:00:24.1]} 37... Rxa6 {[%clk 0:00:51]} 38.
Qxc5 {[%clk 0:00:14.4]} 38... Rxc5 {[%clk 0:00:51.9]} 39. Rb8 {[%clk 0:00:12.5]}
39... Rac6 {[%clk 0:00:45.4]} 40. Rb3 {[%clk 0:00:05]} 40... Be6 {[%clk
0:00:41.9]} 41. Rd3 {[%clk 0:00:04.4]} 41... Rc7 {[%clk 0:00:39.7]} 42. Ra3
{[%clk 0:00:03.3]} 42... Bf5 {[%clk 0:00:32.5]} 43. Re3 {[%clk 0:00:03.9]} 43...
Kf7 {[%clk 0:00:29.9]} 44. Nd2 {[%clk 0:00:03.9]} 44... Be6 {[%clk 0:00:27.8]}
45. g3 {[%clk 0:00:04.2]} 45... Rd7 {[%clk 0:00:21.7]} 46. Kg2 {[%clk
0:00:04.6]} 46... d4 {[%clk 0:00:21.2]} 47. cxd4 {[%clk 0:00:05.2]} 47... exd4
{[%clk 0:00:20.5]} 48. Red3 {[%clk 0:00:05]} 48... Bf5 {[%clk 0:00:20.9]} 49.
Rdb3 {[%clk 0:00:05]} 49... Rc2 {[%clk 0:00:20.8]} 50. Nf3 {[%clk 0:00:05.1]}
50... Be4 {[%clk 0:00:20.6]} 51. Kf1 {[%clk 0:00:02.9]} 51... d3 {[%clk
0:00:20.3]} 52. Ne1 {[%clk 0:00:03.1]} 52... d2 {[%clk 0:00:19.7]} 53. Ra1
{[%clk 0:00:02.1]} 53... Rc1 {[%clk 0:00:18.3]} 0-1

[Event "Late-Titled-Tuesday-Blitz-September-19-2023"]
[Site "Chess.com"]
[Date "2023.09.19"]
[Round "1"]
[White "Flaccidmoves"]
[Black "alexrustemov"]
[Result "0-1"]
[WhiteElo "2456"]
[BlackElo "2802"]
[TimeControl "180+1"]
[EndTime "14:07:49 PDT"]
[Termination "alexrustemov won by checkmate"]

1. c4 {[%clk 0:03:00.9]} 1... c5 {[%clk 0:02:59.5]} 2. g3 {[%clk 0:02:59.5]}
2... g6 {[%clk 0:02:59.5]} 3. Bg2 {[%clk 0:02:59.9]} 3... Bg7 {[%clk 0:03:00.2]}
4. Nc3 {[%clk 0:02:58.2]} 4... Nc6 {[%clk 0:03:00.6]} 5. Rb1 {[%clk 0:02:58.1]}
5... b6 {[%clk 0:03:00.6]} 6. a3 {[%clk 0:02:57.5]} 6... Bxc3 {[%clk 0:02:56.6]}
7. dxc3 {[%clk 0:02:45.8]} 7... Bb7 {[%clk 0:02:56.7]} 8. Nf3 {[%clk 0:02:42.7]}
8... d6 {[%clk 0:02:56.5]} 9. O-O {[%clk 0:02:38.8]} 9... Qc7 {[%clk 0:02:54.3]}
10. b4 {[%clk 0:02:36.7]} 10... Nf6 {[%clk 0:02:52.5]} 11. a4 {[%clk 0:02:20.9]}
11... O-O {[%clk 0:02:48.4]} 12. Bh6 {[%clk 0:02:12.6]} 12... Rfc8 {[%clk
0:02:38.6]} 13. a5 {[%clk 0:02:09.2]} 13... Ne5 {[%clk 0:02:33]} 14. Nxe5 {[%clk
0:02:00.6]} 14... Bxg2 {[%clk 0:02:32.3]} 15. Kxg2 {[%clk 0:02:01.3]} 15... dxe5
{[%clk 0:02:32.6]} 16. b5 {[%clk 0:01:50.9]} 16... Rd8 {[%clk 0:02:15.9]} 17.
Qc2 {[%clk 0:01:48.2]} 17... Qd7 {[%clk 0:02:10.6]} 18. Rfd1 {[%clk 0:01:37]}
18... Qe6 {[%clk 0:02:06.5]} 19. Rxd8+ {[%clk 0:01:24.8]} 19... Rxd8 {[%clk
0:02:05.7]} 20. Rd1 {[%clk 0:01:25.4]} 20... Re8 {[%clk 0:01:51.7]} 21. axb6
{[%clk 0:00:56.9]} 21... axb6 {[%clk 0:01:52.6]} 22. Qa2 {[%clk 0:00:56.8]}
22... Ng4 {[%clk 0:01:29.5]} 23. Bc1 {[%clk 0:00:51.3]} 23... h5 {[%clk
0:01:27]} 24. h3 {[%clk 0:00:43.7]} 24... Nf6 {[%clk 0:01:26.2]} 25. f3 {[%clk
0:00:32]} 25... e4 {[%clk 0:01:24.1]} 26. f4 {[%clk 0:00:28.5]} 26... e3 {[%clk
0:01:23.6]} 27. Rd3 {[%clk 0:00:20.4]} 27... Qe4+ {[%clk 0:01:10.2]} 28. Kh2
{[%clk 0:00:20.4]} 28... Ra8 {[%clk 0:01:09.4]} 29. Qb2 {[%clk 0:00:13.8]} 29...
Qxc4 {[%clk 0:01:05.5]} 30. Bxe3 {[%clk 0:00:13.3]} 30... Ra2 {[%clk 0:01:05.3]}
31. Qb1 {[%clk 0:00:11.8]} 31... Rxe2+ {[%clk 0:01:04.7]} 32. Kg1 {[%clk
0:00:11.9]} 32... Qe4 {[%clk 0:01:02.6]} 33. Rd8+ {[%clk 0:00:11.5]} 33... Kg7
{[%clk 0:01:01.6]} 34. Qxe4 {[%clk 0:00:12.4]} 34... Nxe4 {[%clk 0:01:01.6]} 35.
Rb8 {[%clk 0:00:02]} 35... Rxe3 {[%clk 0:01:00.1]} 36. Rxb6 {[%clk 0:00:02.6]}
36... Rxg3+ {[%clk 0:01:00.3]} 37. Kh2 {[%clk 0:00:03]} 37... Rxc3 {[%clk
0:01:01]} 38. Rb7 {[%clk 0:00:02.7]} 38... Rc2+ {[%clk 0:01:00.7]} 39. Kg1
{[%clk 0:00:02.2]} 39... Kf6 {[%clk 0:00:55.7]} 40. b6 {[%clk 0:00:01.7]} 40...
Rb2 {[%clk 0:00:56.2]} 41. Rb8 {[%clk 0:00:01.9]} 41... c4 {[%clk 0:00:56.5]}
42. b7 {[%clk 0:00:01.8]} 42... c3 {[%clk 0:00:56.9]} 43. Kf1 {[%clk 0:00:01.7]}
43... c2 {[%clk 0:00:56.8]} 44. Rc8 {[%clk 0:00:02.3]} 44... Rxb7 {[%clk
0:00:55.5]} 45. Rxc2 {[%clk 0:00:02.7]} 45... Rb3 {[%clk 0:00:55]} 46. Rc6+
{[%clk 0:00:03.2]} 46... e6 {[%clk 0:00:55]} 47. Kg2 {[%clk 0:00:03.7]} 47...
Ng3 {[%clk 0:00:48.6]} 48. Ra6 {[%clk 0:00:02.2]} 48... Nf5 {[%clk 0:00:48.3]}
49. Ra5 {[%clk 0:00:02.1]} 49... Rb2+ {[%clk 0:00:44.6]} 50. Kf3 {[%clk
0:00:01.5]} 50... Rh2 {[%clk 0:00:44.2]} 51. Ra6 {[%clk 0:00:01.1]} 51... Rxh3+
{[%clk 0:00:44]} 52. Kg2 {[%clk 0:00:02]} 52... Rb3 {[%clk 0:00:43.8]} 53. Kh2
{[%clk 0:00:02.3]} 53... h4 {[%clk 0:00:43]} 54. Ra5 {[%clk 0:00:01.7]} 54...
Nh6 {[%clk 0:00:41.7]} 55. Ra6 {[%clk 0:00:01.8]} 55... Ng4+ {[%clk 0:00:41.5]}
56. Kg2 {[%clk 0:00:02.1]} 56... h3+ {[%clk 0:00:41.6]} 57. Kf1 {[%clk
0:00:02.6]} 57... Rb1+ {[%clk 0:00:40.4]} 58. Ke2 {[%clk 0:00:02.4]} 58... h2
{[%clk 0:00:40.8]} 59. f5 {[%clk 0:00:02.9]} 59... h1=Q {[%clk 0:00:40]} 60.
fxe6 {[%clk 0:00:03.2]} 60... Qe4+ {[%clk 0:00:38.4]} 61. Kd2 {[%clk 0:00:02]}
61... Rb2+ {[%clk 0:00:38.6]} 62. Kd1 {[%clk 0:00:01.7]} 62... Qc2+ {[%clk
0:00:38.2]} 63. Ke1 {[%clk 0:00:02.1]} 63... Qe2# {[%clk 0:00:38.4]} 0-1

[Event "Late-Titled-Tuesday-Blitz-September-19-2023"]
[Site "Chess.com"]
[Date "2023.09.19"]
[Round "1"]
[White "picturesquecheck"]
[Black "serhanberat_ozdemir"]
[Result "0-1"]
[WhiteElo "2347"]
[BlackElo "2622"]
[TimeControl "180+1"]
[EndTime "14:07:49 PDT"]
[Termination "serhanberat_ozdemir won by resignation"]

1. e4 {[%clk 0:02:36.5]} 1... c5 {[%clk 0:02:57.8]} 2. c3 {[%clk 0:02:35.8]}
2... d5 {[%clk 0:02:57.1]} 3. exd5 {[%clk 0:02:36.1]} 3... Qxd5 {[%clk
0:02:57.9]} 4. d4 {[%clk 0:02:36.7]} 4... Nc6 {[%clk 0:02:57.9]} 5. Nf3 {[%clk
0:02:36.6]} 5... Bg4 {[%clk 0:02:58.3]} 6. Be2 {[%clk 0:02:29.2]} 6... e6 {[%clk
0:02:58.5]} 7. Na3 {[%clk 0:02:25]} 7... cxd4 {[%clk 0:02:46]} 8. Nb5 {[%clk
0:02:21.5]} 8... Qd8 {[%clk 0:02:40.3]} 9. Nbxd4 {[%clk 0:02:20.3]} 9... Nxd4
{[%clk 0:02:38]} 10. Nxd4 {[%clk 0:02:20.5]} 10... Bxe2 {[%clk 0:02:35.3]} 11.
Qxe2 {[%clk 0:02:21.4]} 11... Nf6 {[%clk 0:02:34.7]} 12. O-O {[%clk 0:02:20.8]}
12... Be7 {[%clk 0:02:31.7]} 13. Bg5 {[%clk 0:02:17]} 13... O-O {[%clk
0:02:30.6]} 14. Rad1 {[%clk 0:02:16.6]} 14... Qb6 {[%clk 0:02:30]} 15. Be3
{[%clk 0:02:15.1]} 15... Qa5 {[%clk 0:02:27.1]} 16. a3 {[%clk 0:02:12.2]} 16...
a6 {[%clk 0:02:22.2]} 17. Rfe1 {[%clk 0:02:07.3]} 17... Rfd8 {[%clk 0:02:21.5]}
18. h3 {[%clk 0:02:05.9]} 18... Qa4 {[%clk 0:02:14.1]} 19. Qf3 {[%clk
0:02:02.1]} 19... Rd5 {[%clk 0:02:10.8]} 20. Rc1 {[%clk 0:01:42]} 20... Rad8
{[%clk 0:02:10.6]} 21. Nc2 {[%clk 0:01:39.4]} 21... Qb3 {[%clk 0:01:58.5]} 22.
Nb4 {[%clk 0:01:34.2]} 22... R5d7 {[%clk 0:01:50.2]} 23. Bb6 {[%clk 0:01:22.5]}
23... Rc8 {[%clk 0:01:43.7]} 24. Rb1 {[%clk 0:01:21.1]} 24... h6 {[%clk
0:01:34.5]} 25. Red1 {[%clk 0:01:11.7]} 25... Rxd1+ {[%clk 0:01:14.2]} 26. Qxd1
{[%clk 0:01:12.6]} 26... Qc4 {[%clk 0:01:08]} 27. Qf3 {[%clk 0:01:10.7]} 27...
Qe4 {[%clk 0:00:55.1]} 28. Qxe4 {[%clk 0:01:08.7]} 28... Nxe4 {[%clk 0:00:56]}
29. Re1 {[%clk 0:01:07.9]} 29... Nd2 {[%clk 0:00:52.3]} 30. Be3 {[%clk
0:01:07.3]} 30... Nc4 {[%clk 0:00:51.9]} 31. Bc1 {[%clk 0:01:07.5]} 31... Rd8
{[%clk 0:00:49]} 32. Kf1 {[%clk 0:01:05.3]} 32... a5 {[%clk 0:00:41.6]} 33. Nc2
{[%clk 0:01:04.2]} 33... Bc5 {[%clk 0:00:38.1]} 34. Ke2 {[%clk 0:00:59.6]} 34...
f5 {[%clk 0:00:35.1]} 35. Ne3 {[%clk 0:00:58.1]} 35... Bxe3 {[%clk 0:00:33.8]}
36. fxe3 {[%clk 0:00:57.4]} 36... a4 {[%clk 0:00:30]} 37. Rd1 {[%clk 0:00:54.5]}
37... Rxd1 {[%clk 0:00:28.4]} 38. Kxd1 {[%clk 0:00:55.4]} 38... e5 {[%clk
0:00:25.6]} 39. Kc2 {[%clk 0:00:54.7]} 39... Na5 {[%clk 0:00:16.9]} 40. e4
{[%clk 0:00:53.4]} 40... fxe4 {[%clk 0:00:16.6]} 41. Be3 {[%clk 0:00:53.4]}
41... Kf7 {[%clk 0:00:16.7]} 42. Bb6 {[%clk 0:00:48.5]} 42... Nc4 {[%clk
0:00:16.4]} 43. Bg1 {[%clk 0:00:40.5]} 43... Ke6 {[%clk 0:00:15.8]} 44. b3
{[%clk 0:00:38.6]} 44... axb3+ {[%clk 0:00:10.1]} 45. Kxb3 {[%clk 0:00:38.7]}
45... Kd5 {[%clk 0:00:08.6]} 46. a4 {[%clk 0:00:35.8]} 46... e3 {[%clk
0:00:08.8]} 47. Kc2 {[%clk 0:00:34.7]} 47... Ke4 {[%clk 0:00:08.7]} 48. Kd1
{[%clk 0:00:31.8]} 48... Kd3 {[%clk 0:00:08.4]} 49. Ke1 {[%clk 0:00:31.1]} 49...
Na3 {[%clk 0:00:07]} 50. Bxe3 {[%clk 0:00:24]} 50... Kxe3 {[%clk 0:00:07.9]} 51.
a5 {[%clk 0:00:24.8]} 51... Kd3 {[%clk 0:00:07.5]} 52. c4 {[%clk 0:00:25.3]}
52... e4 {[%clk 0:00:07.9]} 53. c5 {[%clk 0:00:24.4]} 53... e3 {[%clk
0:00:08.4]} 54. c6 {[%clk 0:00:22.1]} 54... Nc2+ {[%clk 0:00:09]} 0-1

[Event "Late-Titled-Tuesday-Blitz-September-19-2023"]
[Site "Chess.com"]
[Date "2023.09.19"]
[Round "1"]
[White "Guzman70"]
[Black "Joshukid"]
[Result "1-0"]
[WhiteElo "2289"]
[BlackElo "2548"]
[TimeControl "180+1"]
[EndTime "14:07:51 PDT"]
[Termination "Guzman70 won on time"]

1. Nf3 {[%clk 0:03:00.9]} 1... d5 {[%clk 0:02:55.6]} 2. d4 {[%clk 0:03:00.8]}
2... Nf6 {[%clk 0:02:55.1]} 3. Bf4 {[%clk 0:03:01.4]} 3... e6 {[%clk 0:02:50.4]}
4. e3 {[%clk 0:03:01.7]} 4... Bd6 {[%clk 0:02:51.3]} 5. Bg3 {[%clk 0:03:01.7]}
5... O-O {[%clk 0:02:50.2]} 6. c4 {[%clk 0:03:01.7]} 6... Nc6 {[%clk 0:02:46.6]}
7. Nc3 {[%clk 0:02:58.3]} 7... Qe7 {[%clk 0:02:43.7]} 8. c5 {[%clk 0:02:57]}
8... Bxg3 {[%clk 0:02:43.8]} 9. hxg3 {[%clk 0:02:57.9]} 9... e5 {[%clk
0:02:44.4]} 10. Be2 {[%clk 0:02:50.7]} 10... Bg4 {[%clk 0:02:29.2]} 11. Nxe5
{[%clk 0:02:47.7]} 11... Bxe2 {[%clk 0:02:17.6]} 12. Nxc6 {[%clk 0:02:47.4]}
12... bxc6 {[%clk 0:02:17.3]} 13. Qxe2 {[%clk 0:02:46.5]} 13... a5 {[%clk
0:02:17.3]} 14. b3 {[%clk 0:02:45.4]} 14... Nd7 {[%clk 0:02:16.1]} 15. Qh5
{[%clk 0:02:42.6]} 15... h6 {[%clk 0:02:16.4]} 16. Qg4 {[%clk 0:02:41]} 16... f5
{[%clk 0:02:16.6]} 17. Qf4 {[%clk 0:02:38.8]} 17... Rac8 {[%clk 0:02:06.2]} 18.
g4 {[%clk 0:02:26.1]} 18... fxg4 {[%clk 0:01:52.1]} 19. Qxg4 {[%clk 0:02:27]}
19... Qf6 {[%clk 0:01:45.4]} 20. O-O {[%clk 0:02:22.5]} 20... Nxc5 {[%clk
0:01:44.2]} 21. Nxd5 {[%clk 0:02:16.5]} 21... cxd5 {[%clk 0:01:44.6]} 22. dxc5
{[%clk 0:02:16.6]} 22... c6 {[%clk 0:01:44.4]} 23. Rad1 {[%clk 0:02:10.9]} 23...
Qb2 {[%clk 0:01:42.4]} 24. e4 {[%clk 0:02:04.9]} 24... dxe4 {[%clk 0:01:37.4]}
25. Rd6 {[%clk 0:02:02.9]} 25... e3 {[%clk 0:01:26.7]} 26. Qe6+ {[%clk
0:01:57.3]} 26... Kh8 {[%clk 0:01:26.2]} 27. Qxe3 {[%clk 0:01:58.2]} 27... Qxa2
{[%clk 0:01:25.9]} 28. Qc3 {[%clk 0:01:55.6]} 28... Kh7 {[%clk 0:01:10.4]} 29.
Rd2 {[%clk 0:01:49.8]} 29... Qa3 {[%clk 0:01:07.2]} 30. Ra1 {[%clk 0:01:45.1]}
30... Qb4 {[%clk 0:01:05]} 31. Qxb4 {[%clk 0:01:45.1]} 31... axb4 {[%clk
0:01:05.9]} 32. Ra4 {[%clk 0:01:41.4]} 32... Rf4 {[%clk 0:01:04.2]} 33. Rd6
{[%clk 0:01:30.9]} 33... Rf5 {[%clk 0:00:49]} 34. Rxb4 {[%clk 0:01:28.3]} 34...
Rxc5 {[%clk 0:00:49.4]} 35. Rg4 {[%clk 0:01:23.4]} 35... Rc7 {[%clk 0:00:49]}
36. b4 {[%clk 0:01:22.3]} 36... Rc1+ {[%clk 0:00:48.1]} 37. Kh2 {[%clk
0:01:22.7]} 37... Rc2 {[%clk 0:00:45.1]} 38. f3 {[%clk 0:01:22.7]} 38... c5
{[%clk 0:00:43]} 39. b5 {[%clk 0:01:20.8]} 39... Rb2 {[%clk 0:00:27.9]} 40. b6
{[%clk 0:01:20.7]} 40... Rb7 {[%clk 0:00:28.4]} 41. Rc6 {[%clk 0:01:18.6]} 41...
R2xb6 {[%clk 0:00:27.8]} 42. Rxc5 {[%clk 0:01:07.8]} 42... Rb4 {[%clk
0:00:28.4]} 43. Rxb4 {[%clk 0:01:00.8]} 43... Rxb4 {[%clk 0:00:29.3]} 44. Rc7
{[%clk 0:01:01.5]} 44... h5 {[%clk 0:00:26.9]} 45. Kg3 {[%clk 0:01:00.4]} 45...
h4+ {[%clk 0:00:26.9]} 46. Kh3 {[%clk 0:01:00.6]} 46... Kh6 {[%clk 0:00:27.6]}
47. Rc5 {[%clk 0:01:00.3]} 47... g5 {[%clk 0:00:28.1]} 48. Rc8 {[%clk
0:00:59.4]} 48... Rb1 {[%clk 0:00:28.5]} 49. Kh2 {[%clk 0:00:58.1]} 49... Rb2
{[%clk 0:00:26.9]} 50. Rc6+ {[%clk 0:00:58]} 50... Kh5 {[%clk 0:00:26.8]} 51.
Rc8 {[%clk 0:00:55.6]} 51... Kg6 {[%clk 0:00:25.7]} 52. Rg8+ {[%clk 0:00:55.4]}
52... Kf5 {[%clk 0:00:26.4]} 53. Rf8+ {[%clk 0:00:54.8]} 53... Ke5 {[%clk
0:00:26.3]} 54. Rg8 {[%clk 0:00:52.6]} 54... Kf4 {[%clk 0:00:26.6]} 55. Rf8+
{[%clk 0:00:52.6]} 55... Ke3 {[%clk 0:00:27.2]} 56. Rf5 {[%clk 0:00:50.3]} 56...
g4 {[%clk 0:00:17.5]} 57. fxg4 {[%clk 0:00:48.9]} 57... Ke4 {[%clk 0:00:17.7]}
58. Kh3 {[%clk 0:00:45.3]} 58... Ra2 {[%clk 0:00:17]} 59. Rf8 {[%clk 0:00:39.8]}
59... Ke5 {[%clk 0:00:16.9]} 60. g5 {[%clk 0:00:36.6]} 60... Ra3+ {[%clk
0:00:03.1]} 61. Kxh4 {[%clk 0:00:35.9]} 61... Ke6 {[%clk 0:00:03.2]} 62. g6
{[%clk 0:00:33.8]} 62... Ra4+ {[%clk 0:00:02.5]} 63. g4 {[%clk 0:00:33.2]} 1-0

[Event "Late-Titled-Tuesday-Blitz-September-19-2023"]
[Site "Chess.com"]
[Date "2023.09.19"]
[Round "1"]
[White "Hirna2005"]
[Black "thedjoker98"]
[Result "1-0"]
[WhiteElo "2368"]
[BlackElo "2616"]
[TimeControl "180+1"]
[EndTime "14:07:52 PDT"]
[Termination "Hirna2005 won on time"]

1. e4 {[%clk 0:03:00.9]} 1... e5 {[%clk 0:02:58.8]} 2. Nf3 {[%clk 0:03:00.4]}
2... Nc6 {[%clk 0:02:58.5]} 3. Bc4 {[%clk 0:03:00.3]} 3... Bc5 {[%clk
0:02:58.2]} 4. c3 {[%clk 0:03:00.2]} 4... Nf6 {[%clk 0:02:58.6]} 5. b4 {[%clk
0:02:59.4]} 5... Bb6 {[%clk 0:02:57.5]} 6. d3 {[%clk 0:02:59.7]} 6... d6 {[%clk
0:02:56]} 7. a4 {[%clk 0:02:58.7]} 7... a5 {[%clk 0:02:55.9]} 8. b5 {[%clk
0:02:58.4]} 8... Ne7 {[%clk 0:02:56.6]} 9. O-O {[%clk 0:02:57.3]} 9... Ng6
{[%clk 0:02:56.8]} 10. Bb3 {[%clk 0:02:50.2]} 10... O-O {[%clk 0:02:55.2]} 11.
Nbd2 {[%clk 0:02:49.9]} 11... c6 {[%clk 0:02:54.9]} 12. Nc4 {[%clk 0:02:48.4]}
12... Bc7 {[%clk 0:02:54.3]} 13. Re1 {[%clk 0:02:35.9]} 13... h6 {[%clk
0:02:53.1]} 14. Rb1 {[%clk 0:02:30.6]} 14... Be6 {[%clk 0:02:49.1]} 15. b6
{[%clk 0:02:27.5]} 15... Bb8 {[%clk 0:02:45.1]} 16. Ne3 {[%clk 0:02:23.2]} 16...
d5 {[%clk 0:02:39]} 17. Nf5 {[%clk 0:02:14.4]} 17... Ra6 {[%clk 0:02:27.5]} 18.
Be3 {[%clk 0:02:09]} 18... dxe4 {[%clk 0:02:13.6]} 19. dxe4 {[%clk 0:01:53.6]}
19... Nxe4 {[%clk 0:02:05.8]} 20. Bxe6 {[%clk 0:01:24]} 20... fxe6 {[%clk
0:01:55]} 21. Qb3 {[%clk 0:01:23.3]} 21... Qf6 {[%clk 0:01:22]} 22. Ng3 {[%clk
0:01:21]} 22... Nxg3 {[%clk 0:01:20.6]} 23. fxg3 {[%clk 0:01:21.2]} 23... Bd6
{[%clk 0:01:14.2]} 24. Rbd1 {[%clk 0:01:17.7]} 24... Qe7 {[%clk 0:01:12]} 25.
Qc4 {[%clk 0:01:09.2]} 25... Raa8 {[%clk 0:01:09.8]} 26. Rd2 {[%clk 0:00:59.3]}
26... Nh8 {[%clk 0:01:05.4]} 27. Bf2 {[%clk 0:00:49.9]} 27... Nf7 {[%clk
0:01:02.5]} 28. Nh4 {[%clk 0:00:44.7]} 28... Rfe8 {[%clk 0:00:55.5]} 29. Rde2
{[%clk 0:00:31.2]} 29... Rad8 {[%clk 0:00:54.2]} 30. Ng6 {[%clk 0:00:26.2]}
30... Qf6 {[%clk 0:00:52.7]} 31. Nh4 {[%clk 0:00:20.6]} 31... Bf8 {[%clk
0:00:43.5]} 32. Be3 {[%clk 0:00:19.6]} 32... Rd5 {[%clk 0:00:39.9]} 33. Rf1
{[%clk 0:00:19.5]} 33... Qd8 {[%clk 0:00:38.9]} 34. Ref2 {[%clk 0:00:19.7]}
34... Nd6 {[%clk 0:00:35.5]} 35. Qg4 {[%clk 0:00:18.6]} 35... e4 {[%clk
0:00:13.6]} 36. Ng6 {[%clk 0:00:17.1]} 36... Nf5 {[%clk 0:00:12.4]} 37. Qxe4
{[%clk 0:00:15.2]} 37... Nxe3 {[%clk 0:00:10.8]} 38. Rxf8+ {[%clk 0:00:14.3]}
38... Rxf8 {[%clk 0:00:09.3]} 39. Rxf8+ {[%clk 0:00:13.3]} 39... Qxf8 {[%clk
0:00:09.6]} 40. Nxf8 {[%clk 0:00:14]} 40... Rd1+ {[%clk 0:00:05.8]} 41. Kf2
{[%clk 0:00:13.5]} 41... Nd5 {[%clk 0:00:05.9]} 42. Nxe6 {[%clk 0:00:11.2]}
42... Rd2+ {[%clk 0:00:04.9]} 43. Ke1 {[%clk 0:00:10.9]} 43... Ra2 {[%clk
0:00:04]} 44. Qg6 {[%clk 0:00:09.9]} 44... Ra1+ {[%clk 0:00:02.2]} 45. Ke2
{[%clk 0:00:09.8]} 45... Ra2+ {[%clk 0:00:03.1]} 46. Kd3 {[%clk 0:00:08.9]}
46... Nf4+ {[%clk 0:00:03.5]} 47. gxf4 {[%clk 0:00:08.5]} 1-0